Department Family,Entity,Date,Expense Type,Expense Area,Supplier,Transaction Number,AP Amount
Department of Health,St. Helens&Knowsley Hospitals NHS Trust,29/02/2020,Blood Products,HAEM + BLOOD TRANSFUSION,NHS BLOOD & TRANSPLANT,33078300,"93,470.54"
Department of Health,St. Helens&Knowsley Hospitals NHS Trust,29/02/2020,Computer Hardware Purch,IMT Schemes Fund,CCS MEDIA LTD,33384055,"39,894.19"
Department of Health,St. Helens&Knowsley Hospitals NHS Trust,29/02/2020,Computer Maintenance,TRUST IT SYSTEMS,SYSTEM C HEALTHCARE LTD,33222127,"72,540.00"
Department of Health,St. Helens&Knowsley Hospitals NHS Trust,29/02/2020,Computer Maintenance,HIS programme costs - shared services,SOFTCAT PLC,33480420,"74,436.79"
Department of Health,St. Helens&Knowsley Hospitals NHS Trust,29/02/2020,Computer Maintenance,HIS programme costs - shared services,PHOENIX SOFTWARE LTD,33542541,"40,575.65"
Department of Health,St. Helens&Knowsley Hospitals NHS Trust,29/02/2020,Computer Software/License,TRUST IT SYSTEMS,ICNET INTERNATIONAL LTD,33329013,"10,164.65"
Department of Health,St. Helens&Knowsley Hospitals NHS Trust,29/02/2020,Continence Products,COMMUNITY CONTINENCE SERVICE,ESSITY UK LTD,33454625,"36,498.97"
Department of Health,St. Helens&Knowsley Hospitals NHS Trust,29/02/2020,Data Lines,HIS programme costs - shared services,VIRGIN MEDIA BUSINESS LTD,33446697,"29,483.63"
Department of Health,St. Helens&Knowsley Hospitals NHS Trust,29/02/2020,Equip Maint Contracts,RADIOGRAPHY WHISTON,INTEGRATED RADIOLOGICAL SERVICES LTD,33482554,"56,218.00"
Department of Health,St. Helens&Knowsley Hospitals NHS Trust,29/02/2020,External Data Contracts,NURSING ADMINISTRATION,DATIX LTD,33287858,"42,816.66"
Department of Health,St. Helens&Knowsley Hospitals NHS Trust,29/02/2020,Independent Sector,LLP,ST HELENS ORTHOPAEDICS,33549731,"143,406.07"
Department of Health,St. Helens&Knowsley Hospitals NHS Trust,29/02/2020,Interpreting services,AUDIOLOGY,PRESTIGE NETWORK LTD,33285220,190.08
Department of Health,St. Helens&Knowsley Hospitals NHS Trust,29/02/2020,Interpreting services,B + P DRESSINGS CLINIC,PRESTIGE NETWORK LTD,33285220,"1,385.46"
Department of Health,St. Helens&Knowsley Hospitals NHS Trust,29/02/2020,Interpreting services,B + P MEDICAL STAFF,PRESTIGE NETWORK LTD,33285220,482.52
Department of Health,St. Helens&Knowsley Hospitals NHS Trust,29/02/2020,Interpreting services,CANCER NURSE SPEC SCG,PRESTIGE NETWORK LTD,33285220,525.18
Department of Health,St. Helens&Knowsley Hospitals NHS Trust,29/02/2020,Interpreting services,CANCER SVS CO-ORDINATION,PRESTIGE NETWORK LTD,33285220,248.34
Department of Health,St. Helens&Knowsley Hospitals NHS Trust,29/02/2020,Interpreting services,CARDIOLOGY NURSING,PRESTIGE NETWORK LTD,33285220,930.84
Department of Health,St. Helens&Knowsley Hospitals NHS Trust,29/02/2020,Interpreting services,DELIVERY SUITE,PRESTIGE NETWORK LTD,33285220,212.88
Department of Health,St. Helens&Knowsley Hospitals NHS Trust,29/02/2020,Interpreting services,DERMATOLOGY,PRESTIGE NETWORK LTD,33285220,226.92
Department of Health,St. Helens&Knowsley Hospitals NHS Trust,29/02/2020,Interpreting services,DIABETES NURSING,PRESTIGE NETWORK LTD,33285220,652.8
Department of Health,St. Helens&Knowsley Hospitals NHS Trust,29/02/2020,Interpreting services,ENT MEDICAL STAFF,PRESTIGE NETWORK LTD,33285220,750.42
Department of Health,St. Helens&Knowsley Hospitals NHS Trust,29/02/2020,Interpreting services,FETO MAT ASSESSMENT UNIT,PRESTIGE NETWORK LTD,33285220,94.8
Department of Health,St. Helens&Knowsley Hospitals NHS Trust,29/02/2020,Interpreting services,GASTROLOGY SNR MEDICAL,PRESTIGE NETWORK LTD,33285220,711
Department of Health,St. Helens&Knowsley Hospitals NHS Trust,29/02/2020,Interpreting services,GEN MED ENDOSCOPY H2,PRESTIGE NETWORK LTD,33285220,"1,399.26"
Department of Health,St. Helens&Knowsley Hospitals NHS Trust,29/02/2020,Interpreting services,GEN MEDICINE MEDICAL STF,PRESTIGE NETWORK LTD,33285220,135.84
Department of Health,St. Helens&Knowsley Hospitals NHS Trust,29/02/2020,Interpreting services,GENERAL SURGERY MEDICAL,PRESTIGE NETWORK LTD,33285220,754.32
Department of Health,St. Helens&Knowsley Hospitals NHS Trust,29/02/2020,Interpreting services,GENERAL SURGERY PRE OP,PRESTIGE NETWORK LTD,33285220,94.8
Department of Health,St. Helens&Knowsley Hospitals NHS Trust,29/02/2020,Interpreting services,GYNAE OUTPATIEN ST HELENS,PRESTIGE NETWORK LTD,33285220,485.4
Department of Health,St. Helens&Knowsley Hospitals NHS Trust,29/02/2020,Interpreting services,LASER CLINICS,PRESTIGE NETWORK LTD,33285220,333.6
Department of Health,St. Helens&Knowsley Hospitals NHS Trust,29/02/2020,Interpreting services,NEUROPHYSIOLOGY (EEG),PRESTIGE NETWORK LTD,33285220,122.4
Department of Health,St. Helens&Knowsley Hospitals NHS Trust,29/02/2020,Interpreting services,OBSTETRICS WARD 2E,PRESTIGE NETWORK LTD,33285220,569.76
Department of Health,St. Helens&Knowsley Hospitals NHS Trust,29/02/2020,Interpreting services,OPHTHALMOLOGY MEDICAL,PRESTIGE NETWORK LTD,33285220,"1,490.76"
Department of Health,St. Helens&Knowsley Hospitals NHS Trust,29/02/2020,Interpreting services,ORTHODONTICS & ORAL & FACIAL SURGERY,PRESTIGE NETWORK LTD,33285220,116.1
Department of Health,St. Helens&Knowsley Hospitals NHS Trust,29/02/2020,Interpreting services,ORTHOPAEDIC MEDICAL STAFF,PRESTIGE NETWORK LTD,33285220,539.88
Department of Health,St. Helens&Knowsley Hospitals NHS Trust,29/02/2020,Interpreting services,OUTPATIENTS WHISTON,PRESTIGE NETWORK LTD,33285220,355.02
Department of Health,St. Helens&Knowsley Hospitals NHS Trust,29/02/2020,Interpreting services,PSDU AT ST HELENS,PRESTIGE NETWORK LTD,33285220,756.84
Department of Health,St. Helens&Knowsley Hospitals NHS Trust,29/02/2020,Interpreting services,RADIOGRAPHY WHISTON,PRESTIGE NETWORK LTD,33285220,"1,740.48"
Department of Health,St. Helens&Knowsley Hospitals NHS Trust,29/02/2020,Interpreting services,RESPIRATORY NURSING,PRESTIGE NETWORK LTD,33285220,192.24
Department of Health,St. Helens&Knowsley Hospitals NHS Trust,29/02/2020,Interpreting services,RHEUMATOLOGY NURSING OUTPATIENTS,PRESTIGE NETWORK LTD,33285220,292.32
Department of Health,St. Helens&Knowsley Hospitals NHS Trust,29/02/2020,Interpreting services,SANDERSON SUITE GENERAL SURGERY,PRESTIGE NETWORK LTD,33285220,"1,186.56"
Department of Health,St. Helens&Knowsley Hospitals NHS Trust,29/02/2020,Interpreting services,SEDDON SUITE TRAUMA REHAB UNIT,PRESTIGE NETWORK LTD,33285220,"1,586.34"
Department of Health,St. Helens&Knowsley Hospitals NHS Trust,29/02/2020,Interpreting services,SEXUAL HEALTH CLINIC (GUM),PRESTIGE NETWORK LTD,33285220,541.02
Department of Health,St. Helens&Knowsley Hospitals NHS Trust,29/02/2020,Interpreting services,THEATRES MEDICAL STAFF,PRESTIGE NETWORK LTD,33285220,73.68
Department of Health,St. Helens&Knowsley Hospitals NHS Trust,29/02/2020,Interpreting services,THERAPY MANAGEMENT & ADMIN.,PRESTIGE NETWORK LTD,33285220,796.98
Department of Health,St. Helens&Knowsley Hospitals NHS Trust,29/02/2020,Interpreting services,UROLOGY MEDICAL STAFF,PRESTIGE NETWORK LTD,33285220,515.34
Department of Health,St. Helens&Knowsley Hospitals NHS Trust,29/02/2020,Interpreting services,WARD 1D CARDIOLOGY,PRESTIGE NETWORK LTD,33285220,186.12
Department of Health,St. Helens&Knowsley Hospitals NHS Trust,29/02/2020,Interpreting services,WARD 3A PLASTICS,PRESTIGE NETWORK LTD,33285220,33.6
Department of Health,St. Helens&Knowsley Hospitals NHS Trust,29/02/2020,Interpreting services,WARD 3F PAEDIATRICS,PRESTIGE NETWORK LTD,33285220,714.48
Department of Health,St. Helens&Knowsley Hospitals NHS Trust,29/02/2020,Interpreting services,WARD 4B GENERAL SURGERY,PRESTIGE NETWORK LTD,33285220,492
Department of Health,St. Helens&Knowsley Hospitals NHS Trust,29/02/2020,Interpreting services,WARD 5C HASU,PRESTIGE NETWORK LTD,33285220,234.54
Department of Health,St. Helens&Knowsley Hospitals NHS Trust,29/02/2020,Interpreting services,Womens OPD,PRESTIGE NETWORK LTD,33285220,"2,869.32"
Department of Health,St. Helens&Knowsley Hospitals NHS Trust,29/02/2020,Lab Equip Maint Contracts,HISTOPATHOLOGY/MORTUARY,THERMO FISHER DIAGNOSTIC LTD,33472922,"27,026.68"
Department of Health,St. Helens&Knowsley Hospitals NHS Trust,29/02/2020,Laboratory Equipment,MICROBIOLOGY DEPT,CHRYSTAL CONSULTING LTD,33383906,"13,358.79"
Department of Health,St. Helens&Knowsley Hospitals NHS Trust,29/02/2020,Laboratory Equipment,MICROBIOLOGY DEPT,CHRYSTAL CONSULTING LTD,33383907,"44,543.64"
Department of Health,St. Helens&Knowsley Hospitals NHS Trust,29/02/2020,Laboratory Reagents,HISTOPATHOLOGY/MORTUARY,ROCHE DIAGNOSTICS LTD,33327176,"71,227.80"
Department of Health,St. Helens&Knowsley Hospitals NHS Trust,29/02/2020,Laboratory Reagents,MICROBIOLOGY DEPT,CHRYSTAL CONSULTING LTD,33383862,"359,239.28"
Department of Health,St. Helens&Knowsley Hospitals NHS Trust,29/02/2020,Med & Surg Maint Contract,ICU NURSING WHISTON,DRAEGER MEDICAL UK LTD,33375311,"25,656.00"
Department of Health,St. Helens&Knowsley Hospitals NHS Trust,29/02/2020,Med & Surg Maint Contract,Cold Decontamination,IM MED LTD,33509228,"70,999.87"
Department of Health,St. Helens&Knowsley Hospitals NHS Trust,29/02/2020,Miscellaneous Expenditure,HSDU WHISTON,SYNERGY HEALTH (UK) LTD,33502643,"171,665.80"
Department of Health,St. Helens&Knowsley Hospitals NHS Trust,29/02/2020,Miscellaneous Expenditure,PFI ENABLING WORKS,NEW HOSPITALS (ST HELENS & KNOWSLEY) LTD,33549733,"3,155,166.85"
Department of Health,St. Helens&Knowsley Hospitals NHS Trust,29/02/2020,Mobile Phones,A + E NURSING WHISTON,VODAFONE LTD,33448748,108.14
Department of Health,St. Helens&Knowsley Hospitals NHS Trust,29/02/2020,Mobile Phones,ACUTE KIDNEY INJURY SERVICE,VODAFONE LTD,33448748,36
Department of Health,St. Helens&Knowsley Hospitals NHS Trust,29/02/2020,Mobile Phones,ACUTE MEDICAL UNIT,VODAFONE LTD,33448748,36
Department of Health,St. Helens&Knowsley Hospitals NHS Trust,29/02/2020,Mobile Phones,AMU NURSE SPECIALISTS,VODAFONE LTD,33448748,257.99
Department of Health,St. Helens&Knowsley Hospitals NHS Trust,29/02/2020,Mobile Phones,B + P DRESSINGS CLINIC,VODAFONE LTD,33448748,36.36
Department of Health,St. Helens&Knowsley Hospitals NHS Trust,29/02/2020,Mobile Phones,B + P MEDICAL PHOTOGRAPHY,VODAFONE LTD,33448748,72
Department of Health,St. Helens&Knowsley Hospitals NHS Trust,29/02/2020,Mobile Phones,B + P MEDICAL STAFF,VODAFONE LTD,33448748,94.95
Department of Health,St. Helens&Knowsley Hospitals NHS Trust,29/02/2020,Mobile Phones,BED MANAGEMENT,VODAFONE LTD,33448748,189
Department of Health,St. Helens&Knowsley Hospitals NHS Trust,29/02/2020,Mobile Phones,BUSINESS RELATIONSHIPS,VODAFONE LTD,33448748,36
Department of Health,St. Helens&Knowsley Hospitals NHS Trust,29/02/2020,Mobile Phones,C.O.P.D SERVICE (KPCT),VODAFONE LTD,33448748,9
Department of Health,St. Helens&Knowsley Hospitals NHS Trust,29/02/2020,Mobile Phones,C.O.P.D SERVICE (STHPCT),VODAFONE LTD,33448748,489.2
Department of Health,St. Helens&Knowsley Hospitals NHS Trust,29/02/2020,Mobile Phones,CANCER NURSE SPEC MCG,VODAFONE LTD,33448748,72
Department of Health,St. Helens&Knowsley Hospitals NHS Trust,29/02/2020,Mobile Phones,CANCER NURSE SPEC SCG,VODAFONE LTD,33448748,70.2
Department of Health,St. Helens&Knowsley Hospitals NHS Trust,29/02/2020,Mobile Phones,CANCER SERVICES - ADMIN,VODAFONE LTD,33448748,36
Department of Health,St. Helens&Knowsley Hospitals NHS Trust,29/02/2020,Mobile Phones,CANCER SVS CO-ORDINATION,VODAFONE LTD,33448748,234
Department of Health,St. Helens&Knowsley Hospitals NHS Trust,29/02/2020,Mobile Phones,CARDIO-RESPIRATORY (ECG),VODAFONE LTD,33448748,45.36
Department of Health,St. Helens&Knowsley Hospitals NHS Trust,29/02/2020,Mobile Phones,CARDIOLOGY NURSING,VODAFONE LTD,33448748,126
Department of Health,St. Helens&Knowsley Hospitals NHS Trust,29/02/2020,Mobile Phones,CARE OF ELDERLY MED STAFF,VODAFONE LTD,33448748,630.14
Department of Health,St. Helens&Knowsley Hospitals NHS Trust,29/02/2020,Mobile Phones,CHAIRMAN'S OFFICE,VODAFONE LTD,33448748,253.14
Department of Health,St. Helens&Knowsley Hospitals NHS Trust,29/02/2020,Mobile Phones,CHIEF EXECUTIVE'S OFFICE,VODAFONE LTD,33448748,255.22
Department of Health,St. Helens&Knowsley Hospitals NHS Trust,29/02/2020,Mobile Phones,CLINICAL PSYCHOLOGY,VODAFONE LTD,33448748,45
Department of Health,St. Helens&Knowsley Hospitals NHS Trust,29/02/2020,Mobile Phones,CLINICAL SUPPORT DIV MGMT,VODAFONE LTD,33448748,36.14
Department of Health,St. Helens&Knowsley Hospitals NHS Trust,29/02/2020,Mobile Phones,COE NURSE SPECIALISTS,VODAFONE LTD,33448748,72.1
Department of Health,St. Helens&Knowsley Hospitals NHS Trust,29/02/2020,Mobile Phones,COLD DECONTAMINATION WHISTON,VODAFONE LTD,33448748,81
Department of Health,St. Helens&Knowsley Hospitals NHS Trust,29/02/2020,Mobile Phones,COMMUNICATIONS,VODAFONE LTD,33448748,108
Department of Health,St. Helens&Knowsley Hospitals NHS Trust,29/02/2020,Mobile Phones,COMMUNITY CARDIAC TEAM,VODAFONE LTD,33448748,32.4
Department of Health,St. Helens&Knowsley Hospitals NHS Trust,29/02/2020,Mobile Phones,COMMUNITY CONTINENCE SERVICE,VODAFONE LTD,33448748,144
Department of Health,St. Helens&Knowsley Hospitals NHS Trust,29/02/2020,Mobile Phones,COMMUNITY FRAILTY SERVICE,VODAFONE LTD,33448748,144
Department of Health,St. Helens&Knowsley Hospitals NHS Trust,29/02/2020,Mobile Phones,COMMUNITY MIDWIFERY,VODAFONE LTD,33448748,"1,717.97"
Department of Health,St. Helens&Knowsley Hospitals NHS Trust,29/02/2020,Mobile Phones,COMMUNITY SLA'S,VODAFONE LTD,33448748,216
Department of Health,St. Helens&Knowsley Hospitals NHS Trust,29/02/2020,Mobile Phones,Cancer Core Staff and Non-Pay,VODAFONE LTD,33448748,36
Department of Health,St. Helens&Knowsley Hospitals NHS Trust,29/02/2020,Mobile Phones,Cold Decontamination,VODAFONE LTD,33448748,36
Department of Health,St. Helens&Knowsley Hospitals NHS Trust,29/02/2020,Mobile Phones,DIABETES NURSING,VODAFONE LTD,33448748,72
Department of Health,St. Helens&Knowsley Hospitals NHS Trust,29/02/2020,Mobile Phones,DIABETES SNR MEDICAL,VODAFONE LTD,33448748,72
Department of Health,St. Helens&Knowsley Hospitals NHS Trust,29/02/2020,Mobile Phones,DIABETES STP,VODAFONE LTD,33448748,434.47
Department of Health,St. Helens&Knowsley Hospitals NHS Trust,29/02/2020,Mobile Phones,EAST MIDLANDS HEE,VODAFONE LTD,33448748,72
Department of Health,St. Helens&Knowsley Hospitals NHS Trust,29/02/2020,Mobile Phones,EMERGENCY PLANNING,VODAFONE LTD,33448748,38.48
Department of Health,St. Helens&Knowsley Hospitals NHS Trust,29/02/2020,Mobile Phones,ENT MEDICAL STAFF,VODAFONE LTD,33448748,36
Department of Health,St. Helens&Knowsley Hospitals NHS Trust,29/02/2020,Mobile Phones,EPMA,VODAFONE LTD,33448748,108
Department of Health,St. Helens&Knowsley Hospitals NHS Trust,29/02/2020,Mobile Phones,ESTATE SURVEY SECTION,VODAFONE LTD,33448748,36
Department of Health,St. Helens&Knowsley Hospitals NHS Trust,29/02/2020,Mobile Phones,EXECUTIVE PAYROLL,VODAFONE LTD,33448748,181.38
Department of Health,St. Helens&Knowsley Hospitals NHS Trust,29/02/2020,Mobile Phones,FACILITIES MANAGEMENT,VODAFONE LTD,33448748,189
Department of Health,St. Helens&Knowsley Hospitals NHS Trust,29/02/2020,Mobile Phones,FALLS NURSE,VODAFONE LTD,33448748,60.04
Department of Health,St. Helens&Knowsley Hospitals NHS Trust,29/02/2020,Mobile Phones,FINANCE DIRECTORATE HQ,VODAFONE LTD,33448748,72
Department of Health,St. Helens&Knowsley Hospitals NHS Trust,29/02/2020,Mobile Phones,GASTRO UPPER GI FUND,VODAFONE LTD,33448748,36
Department of Health,St. Helens&Knowsley Hospitals NHS Trust,29/02/2020,Mobile Phones,GASTROLOGY NURSING,VODAFONE LTD,33448748,288
Department of Health,St. Helens&Knowsley Hospitals NHS Trust,29/02/2020,Mobile Phones,GASTROLOGY SNR MEDICAL,VODAFONE LTD,33448748,262.79
Department of Health,St. Helens&Knowsley Hospitals NHS Trust,29/02/2020,Mobile Phones,GEN MEDICINE MEDICAL STF,VODAFONE LTD,33448748,144
Department of Health,St. Helens&Knowsley Hospitals NHS Trust,29/02/2020,Mobile Phones,GENERAL SURGERY MEDICAL,VODAFONE LTD,33448748,177.78
Department of Health,St. Helens&Knowsley Hospitals NHS Trust,29/02/2020,Mobile Phones,HAEM + BLOOD TRANSFUSION,VODAFONE LTD,33448748,232.27
Department of Health,St. Helens&Knowsley Hospitals NHS Trust,29/02/2020,Mobile Phones,HAEMATOLOGY MEDICAL,VODAFONE LTD,33448748,108
Department of Health,St. Helens&Knowsley Hospitals NHS Trust,29/02/2020,Mobile Phones,HAIRDRESSER ST HELENS,VODAFONE LTD,33448748,36
Department of Health,St. Helens&Knowsley Hospitals NHS Trust,29/02/2020,Mobile Phones,HIS programme costs - shared services,VODAFONE LTD,33448748,"1,376.54"
Department of Health,St. Helens&Knowsley Hospitals NHS Trust,29/02/2020,Mobile Phones,HISTOPATHOLOGY/MORTUARY,VODAFONE LTD,33448748,18.36
Department of Health,St. Helens&Knowsley Hospitals NHS Trust,29/02/2020,Mobile Phones,HOSPITAL DISCHARGE TEAM,VODAFONE LTD,33448748,36
Department of Health,St. Helens&Knowsley Hospitals NHS Trust,29/02/2020,Mobile Phones,HSDU WHISTON,VODAFONE LTD,33448748,36
Department of Health,St. Helens&Knowsley Hospitals NHS Trust,29/02/2020,Mobile Phones,HUMAN RESOURCES - RESOURCING,VODAFONE LTD,33448748,"1,531.68"
Department of Health,St. Helens&Knowsley Hospitals NHS Trust,29/02/2020,Mobile Phones,ICU MEDICAL STAFF WHISTON,VODAFONE LTD,33448748,288.59
Department of Health,St. Helens&Knowsley Hospitals NHS Trust,29/02/2020,Mobile Phones,INFANT FEEDING TEAM,VODAFONE LTD,33448748,144.96
Department of Health,St. Helens&Knowsley Hospitals NHS Trust,29/02/2020,Mobile Phones,INFECTION CONTROL,VODAFONE LTD,33448748,63
Department of Health,St. Helens&Knowsley Hospitals NHS Trust,29/02/2020,Mobile Phones,INFORMATION DEPARTMENT,VODAFONE LTD,33448748,124.2
Department of Health,St. Helens&Knowsley Hospitals NHS Trust,29/02/2020,Mobile Phones,IV THERAPY ST HELENS,VODAFONE LTD,33448748,319.7
Department of Health,St. Helens&Knowsley Hospitals NHS Trust,29/02/2020,Mobile Phones,LEGAL SERVICES,VODAFONE LTD,33448748,36
Department of Health,St. Helens&Knowsley Hospitals NHS Trust,29/02/2020,Mobile Phones,LIBRARY SERVICES,VODAFONE LTD,33448748,68.9
Department of Health,St. Helens&Knowsley Hospitals NHS Trust,29/02/2020,Mobile Phones,MARSHALLS CROSS MEDICAL CENTRE,VODAFONE LTD,33448748,36
Department of Health,St. Helens&Knowsley Hospitals NHS Trust,29/02/2020,Mobile Phones,MATERNITY THEATRES EMERGENCY WEEKDAYS,VODAFONE LTD,33448748,9
Department of Health,St. Helens&Knowsley Hospitals NHS Trust,29/02/2020,Mobile Phones,MEDICAL CARE GROUP MGT,VODAFONE LTD,33448748,"1,900.84"
Department of Health,St. Helens&Knowsley Hospitals NHS Trust,29/02/2020,Mobile Phones,MGMT SPECIALIST MIDWIVES,VODAFONE LTD,33448748,471.37
Department of Health,St. Helens&Knowsley Hospitals NHS Trust,29/02/2020,Mobile Phones,MICROBIOLOGY DEPT,VODAFONE LTD,33448748,279.36
Department of Health,St. Helens&Knowsley Hospitals NHS Trust,29/02/2020,Mobile Phones,MICROBIOLOGY MED STAFF,VODAFONE LTD,33448748,72
Department of Health,St. Helens&Knowsley Hospitals NHS Trust,29/02/2020,Mobile Phones,NEWTON INTERMEDIATE CARE SERVICE,VODAFONE LTD,33448748,189.19
Department of Health,St. Helens&Knowsley Hospitals NHS Trust,29/02/2020,Mobile Phones,NORTH WEST HEE,VODAFONE LTD,33448748,647.18
Department of Health,St. Helens&Knowsley Hospitals NHS Trust,29/02/2020,Mobile Phones,NURSING ADMINISTRATION,VODAFONE LTD,33448748,734.94
Department of Health,St. Helens&Knowsley Hospitals NHS Trust,29/02/2020,Mobile Phones,Nursing Director Admin Staff,VODAFONE LTD,33448748,36
Department of Health,St. Helens&Knowsley Hospitals NHS Trust,29/02/2020,Mobile Phones,OBS + GYNAE MEDICAL STAFF,VODAFONE LTD,33448748,132.78
Department of Health,St. Helens&Knowsley Hospitals NHS Trust,29/02/2020,Mobile Phones,OCCUPATIONAL HEALTH NURS,VODAFONE LTD,33448748,36
Department of Health,St. Helens&Knowsley Hospitals NHS Trust,29/02/2020,Mobile Phones,ORGANISATIONAL L And D,VODAFONE LTD,33448748,9
Department of Health,St. Helens&Knowsley Hospitals NHS Trust,29/02/2020,Mobile Phones,ORTHOPAEDIC MEDICAL STAFF,VODAFONE LTD,33448748,45
Department of Health,St. Helens&Knowsley Hospitals NHS Trust,29/02/2020,Mobile Phones,OUTPATIENTS ST HELENS,VODAFONE LTD,33448748,36
Department of Health,St. Helens&Knowsley Hospitals NHS Trust,29/02/2020,Mobile Phones,PAED SPECIALIST NURSES,VODAFONE LTD,33448748,99
Department of Health,St. Helens&Knowsley Hospitals NHS Trust,29/02/2020,Mobile Phones,PAEDIATRIC MEDICAL STAFF,VODAFONE LTD,33448748,9
Department of Health,St. Helens&Knowsley Hospitals NHS Trust,29/02/2020,Mobile Phones,PAEDIATRICS WARD CLERKS,VODAFONE LTD,33448748,9
Department of Health,St. Helens&Knowsley Hospitals NHS Trust,29/02/2020,Mobile Phones,PALLIATIVE CARE WHISTON,VODAFONE LTD,33448748,108.62
Department of Health,St. Helens&Knowsley Hospitals NHS Trust,29/02/2020,Mobile Phones,PATHOLOGY GENERAL,VODAFONE LTD,33448748,549.18
Department of Health,St. Helens&Knowsley Hospitals NHS Trust,29/02/2020,Mobile Phones,PATIENT ACCESS MGMT,VODAFONE LTD,33448748,108
Department of Health,St. Helens&Knowsley Hospitals NHS Trust,29/02/2020,Mobile Phones,PAYING PATIENTS,VODAFONE LTD,33448748,108
Department of Health,St. Helens&Knowsley Hospitals NHS Trust,29/02/2020,Mobile Phones,PAYROLL SERVICES,VODAFONE LTD,33448748,288
Department of Health,St. Helens&Knowsley Hospitals NHS Trust,29/02/2020,Mobile Phones,PFI DESIGN + CONSTRUCTION,VODAFONE LTD,33448748,366.19
Department of Health,St. Helens&Knowsley Hospitals NHS Trust,29/02/2020,Mobile Phones,PHARMACY GENERAL,VODAFONE LTD,33448748,481.55
Department of Health,St. Helens&Knowsley Hospitals NHS Trust,29/02/2020,Mobile Phones,PROJECTS And TRAINING,VODAFONE LTD,33448748,117
Department of Health,St. Helens&Knowsley Hospitals NHS Trust,29/02/2020,Mobile Phones,Patient Safety,VODAFONE LTD,33448748,63
Department of Health,St. Helens&Knowsley Hospitals NHS Trust,29/02/2020,Mobile Phones,RADIOGRAPHY WHISTON,VODAFONE LTD,33448748,36
Department of Health,St. Helens&Knowsley Hospitals NHS Trust,29/02/2020,Mobile Phones,RADIOLOGY MEDICAL STAFF,VODAFONE LTD,33448748,72
Department of Health,St. Helens&Knowsley Hospitals NHS Trust,29/02/2020,Mobile Phones,RD and I,VODAFONE LTD,33448748,117
Department of Health,St. Helens&Knowsley Hospitals NHS Trust,29/02/2020,Mobile Phones,REABLEMENT TEAM,VODAFONE LTD,33448748,144
Department of Health,St. Helens&Knowsley Hospitals NHS Trust,29/02/2020,Mobile Phones,REGIONAL CANCER TRANSFORMATION,VODAFONE LTD,33448748,79.2
Department of Health,St. Helens&Knowsley Hospitals NHS Trust,29/02/2020,Mobile Phones,RESPIRATORY NURSING,VODAFONE LTD,33448748,144.14
Department of Health,St. Helens&Knowsley Hospitals NHS Trust,29/02/2020,Mobile Phones,RESPIRATORY SNR MEDICAL,VODAFONE LTD,33448748,189
Department of Health,St. Helens&Knowsley Hospitals NHS Trust,29/02/2020,Mobile Phones,Resuscitation Training,VODAFONE LTD,33448748,36.36
Department of Health,St. Helens&Knowsley Hospitals NHS Trust,29/02/2020,Mobile Phones,SAFEGUARDING,VODAFONE LTD,33448748,36
Department of Health,St. Helens&Knowsley Hospitals NHS Trust,29/02/2020,Mobile Phones,SEPSIS,VODAFONE LTD,33448748,36.36
Department of Health,St. Helens&Knowsley Hospitals NHS Trust,29/02/2020,Mobile Phones,SERV INCR 4 TEACHING-SIFT,VODAFONE LTD,33448748,144
Department of Health,St. Helens&Knowsley Hospitals NHS Trust,29/02/2020,Mobile Phones,SEXUAL HEALTH,VODAFONE LTD,33448748,475.1
Department of Health,St. Helens&Knowsley Hospitals NHS Trust,29/02/2020,Mobile Phones,SHARED CARE RECORD - ST HELENS HEALTH ECONOMY,VODAFONE LTD,33448748,871.56
Department of Health,St. Helens&Knowsley Hospitals NHS Trust,29/02/2020,Mobile Phones,SOHT Phlebotomy,VODAFONE LTD,33448748,108
Department of Health,St. Helens&Knowsley Hospitals NHS Trust,29/02/2020,Mobile Phones,ST HELENS REABLEMENT,VODAFONE LTD,33448748,18
Department of Health,St. Helens&Knowsley Hospitals NHS Trust,29/02/2020,Mobile Phones,SURGICAL CARE MANAGEMENT,VODAFONE LTD,33448748,468.14
Department of Health,St. Helens&Knowsley Hospitals NHS Trust,29/02/2020,Mobile Phones,SURGICAL CARE SECS,VODAFONE LTD,33448748,36
Department of Health,St. Helens&Knowsley Hospitals NHS Trust,29/02/2020,Mobile Phones,Service Delivery Infrastructure,VODAFONE LTD,33448748,108
Department of Health,St. Helens&Knowsley Hospitals NHS Trust,29/02/2020,Mobile Phones,Service Delivery Operations,VODAFONE LTD,33448748,36
Department of Health,St. Helens&Knowsley Hospitals NHS Trust,29/02/2020,Mobile Phones,THEATRES ANAESTHETICS WH,VODAFONE LTD,33448748,9
Department of Health,St. Helens&Knowsley Hospitals NHS Trust,29/02/2020,Mobile Phones,THEATRES BURNS + PLASTICS,VODAFONE LTD,33448748,45
Department of Health,St. Helens&Knowsley Hospitals NHS Trust,29/02/2020,Mobile Phones,THEATRES DIRECTORATE MGT,VODAFONE LTD,33448748,207
Department of Health,St. Helens&Knowsley Hospitals NHS Trust,29/02/2020,Mobile Phones,THEATRES GEN SURGERY/UROL,VODAFONE LTD,33448748,18
Department of Health,St. Helens&Knowsley Hospitals NHS Trust,29/02/2020,Mobile Phones,THEATRES MATERNITY WH,VODAFONE LTD,33448748,18
Department of Health,St. Helens&Knowsley Hospitals NHS Trust,29/02/2020,Mobile Phones,THEATRES MEDICAL STAFF,VODAFONE LTD,33448748,36
Department of Health,St. Helens&Knowsley Hospitals NHS Trust,29/02/2020,Mobile Phones,THEATRES TRAU ORTHOPAEDIC,VODAFONE LTD,33448748,9
Department of Health,St. Helens&Knowsley Hospitals NHS Trust,29/02/2020,Mobile Phones,THERAPY MANAGEMENT & ADMIN.,VODAFONE LTD,33448748,405
Department of Health,St. Helens&Knowsley Hospitals NHS Trust,29/02/2020,Mobile Phones,TISSUE VIABILITY,VODAFONE LTD,33448748,9
Department of Health,St. Helens&Knowsley Hospitals NHS Trust,29/02/2020,Mobile Phones,Trust Recharges,VODAFONE LTD,33448748,912
Department of Health,St. Helens&Knowsley Hospitals NHS Trust,29/02/2020,Mobile Phones,UROLOGY MEDICAL STAFF,VODAFONE LTD,33448748,270.71
Department of Health,St. Helens&Knowsley Hospitals NHS Trust,29/02/2020,Mobile Phones,UROLOGY SUITE,VODAFONE LTD,33448748,128.2
Department of Health,St. Helens&Knowsley Hospitals NHS Trust,29/02/2020,Mobile Phones,WARD 1A FRAILTY,VODAFONE LTD,33448748,117
Department of Health,St. Helens&Knowsley Hospitals NHS Trust,29/02/2020,Mobile Phones,WARD 1B ACUTE MEDICAL UNIT,VODAFONE LTD,33448748,72
Department of Health,St. Helens&Knowsley Hospitals NHS Trust,29/02/2020,Mobile Phones,WARD 1C ACUTE MEDICAL UNIT,VODAFONE LTD,33448748,72.05
Department of Health,St. Helens&Knowsley Hospitals NHS Trust,29/02/2020,Mobile Phones,WARD 3A PLASTICS,VODAFONE LTD,33448748,117.36
Department of Health,St. Helens&Knowsley Hospitals NHS Trust,29/02/2020,Mobile Phones,WARD 3E GYNAECOLOGY,VODAFONE LTD,33448748,36
Department of Health,St. Helens&Knowsley Hospitals NHS Trust,29/02/2020,Mobile Phones,WARD 3F PAEDIATRICS,VODAFONE LTD,33448748,82.75
Department of Health,St. Helens&Knowsley Hospitals NHS Trust,29/02/2020,Mobile Phones,WEST MIDLANDS HEE,VODAFONE LTD,33448748,252.14
Department of Health,St. Helens&Knowsley Hospitals NHS Trust,29/02/2020,Mobile Phones,WHIS THEATRES EMERG WKDAY NGTS WKEND,VODAFONE LTD,33448748,36
Department of Health,St. Helens&Knowsley Hospitals NHS Trust,29/02/2020,Mobile Phones,WHISTON EQUIPMENT POOL,VODAFONE LTD,33448748,36
Department of Health,St. Helens&Knowsley Hospitals NHS Trust,29/02/2020,Mobile Phones,WORKFORCE INTELLIGENCE,VODAFONE LTD,33448748,108
Department of Health,St. Helens&Knowsley Hospitals NHS Trust,29/02/2020,Rent,NEWTON INTERMEDIATE CARE SERVICE,COMMUNITY HEALTH PARTNERSHIPS LTD,33502624,"102,933.46"
Department of Health,St. Helens&Knowsley Hospitals NHS Trust,29/02/2020,Services Received - NHSTs,PATHOLOGY GENERAL,LIVERPOOL UNIVERSITY HOSPITALS NHS FOUNDATION TRUST,33285266,"33,026.14"
Department of Health,St. Helens&Knowsley Hospitals NHS Trust,29/02/2020,SrvcsRecd-FoundationTrust,A + E MEDICAL STAFF WH,NORTH WEST BOROUGHS HEALTHCARE NHS FOUNDATION TRUST,33314400,"81,495.00"
Department of Health,St. Helens&Knowsley Hospitals NHS Trust,29/02/2020,SrvcsRecd-FoundationTrust,CHEMICAL PATHOLOGY DEPT,LANCASHIRE TEACHING HOSPITALS NHS FOUNDATION TRUST,33454703,"29,873.03"
Department of Health,St. Helens&Knowsley Hospitals NHS Trust,29/02/2020,SrvcsRecd-FoundationTrust,COMMUNITY SLA'S,NORTH WEST BOROUGHS HEALTHCARE NHS FOUNDATION TRUST,33540210,"682,611.00"
Department of Health,St. Helens&Knowsley Hospitals NHS Trust,29/02/2020,Staff Location/Bleeps,TRUST IT SYSTEMS,MULTITONE ELECTRONICS PLC,33299211,"28,308.02"
Department of Health,St. Helens&Knowsley Hospitals NHS Trust,29/02/2020,Stocks Raw Materials,Balance Sheet,NOVARTIS PHARMACEUTICALS UK LTD,33276579,"26,489.69"
Department of Health,St. Helens&Knowsley Hospitals NHS Trust,29/02/2020,Stocks Raw Materials,Balance Sheet,ALLIANCE HEALTHCARE DISTRIBUTION LTD,33318993,"117,774.93"
Department of Health,St. Helens&Knowsley Hospitals NHS Trust,29/02/2020,Stocks Raw Materials,Balance Sheet,ALLOGA UK LTD,33318994,"40,017.11"
Department of Health,St. Helens&Knowsley Hospitals NHS Trust,29/02/2020,Stocks Raw Materials,Balance Sheet,PHOENIX HEALTHCARE DISTRIBUTION LTD,33318995,"31,262.38"
Department of Health,St. Helens&Knowsley Hospitals NHS Trust,29/02/2020,Stocks Raw Materials,Balance Sheet,NOVARTIS PHARMACEUTICALS UK LTD,33339841,"26,081.05"
Department of Health,St. Helens&Knowsley Hospitals NHS Trust,29/02/2020,Stocks Raw Materials,Balance Sheet,NOVARTIS PHARMACEUTICALS UK LTD,33409940,"27,870.91"
Department of Health,St. Helens&Knowsley Hospitals NHS Trust,29/02/2020,Stocks Raw Materials,Balance Sheet,ROCHE PRODUCTS LTD,33491920,"27,626.92"
Department of Health,St. Helens&Knowsley Hospitals NHS Trust,29/02/2020,Stocks Raw Materials,Balance Sheet,HEALTHCARE AT HOME LTD,33508636,"84,937.66"
Department of Health,St. Helens&Knowsley Hospitals NHS Trust,29/02/2020,Stocks Raw Materials,Balance Sheet,HEALTHCARE AT HOME LTD,33508637,"80,478.07"
Department of Health,St. Helens&Knowsley Hospitals NHS Trust,29/02/2020,Stocks Raw Materials,Balance Sheet,AAH PHARMACEUTICALS LTD,33517178,"100,404.85"
Department of Health,St. Helens&Knowsley Hospitals NHS Trust,29/02/2020,Various Supplies,Multiple areas,SUPPLY CHAIN COORDINATION LIMITED,33303462,"169,873.94"
Department of Health,St. Helens&Knowsley Hospitals NHS Trust,29/02/2020,Various Supplies,Multiple areas,SUPPLY CHAIN COORDINATION LIMITED,33328773,"177,503.67"
Department of Health,St. Helens&Knowsley Hospitals NHS Trust,29/02/2020,Various Supplies,Multiple areas,SUPPLY CHAIN COORDINATION LIMITED,33540221,"203,968.05"
Department of Health,St. Helens&Knowsley Hospitals NHS Trust,29/02/2020,Various Supplies,Multiple areas,SUPPLY CHAIN COORDINATION LIMITED,33540230,"159,630.83"
Department of Health,St. Helens&Knowsley Hospitals NHS Trust,29/02/2020,Various Supplies,Multiple areas,SUPPLY CHAIN COORDINATION LIMITED,33540238,"189,232.77"
Department of Health,St. Helens&Knowsley Hospitals NHS Trust,29/02/2020,Water,RATES/WATER WHISTON,WATER PLUS,33381244,"41,858.75"
